bitfinex/quotes_SOLUSD_20240614
["timestamp","ask_amount","ask_price","bid_price","bid_amount"]
[1718403206873,25.8476,143.15,143.09,8.0971]
[1718403207074,25.8476,143.15,143.09,15.8544]
[1718403207375,25.8476,143.15,143.09,26.1975]
[1718403207589,23.264,143.14,143.09,0.17]
[1718403207809,2.585,143.13,143.08,7.7575]
[1718403207972,25.8476,143.15,143.09,15.5145]
[1718403208174,2.5849,143.14,143.09,7.7572]
[1718403208373,2.5849,143.14,143.09,2.5857]
[1718403208909,25.8476,143.15,143.09,7.7572]
[1718403209079,2.5848,143.15,143.1,2.5855]
[1718403209406,2.5848,143.15,143.1,7.7566]
[1718403209903,25.8462,143.16,143.1,7.7566]
[1718403210089,2.5847,143.15,143.1,2.5855]
[1718403210598,7.7547,143.14,143.08,15.5152]
[1718403210817,25.8478,143.15,143.09,15.5145]
[1718403210989,7.7543,143.15,143.1,2.5856]
[1718403211177,15.5084,143.15,143.09,25.8575]
[1718403211378,7.7543,143.15,143.1,2.5856]
[1718403211714,15.5072,143.16,143.1,25.8553]
[1718403212018,7.7536,143.16,143.1,25.8553]
[1718403212180,5.1683,143.18,143.13,2.5849]
[1718403212385,15.5049,143.18,143.12,25.8512]
[1718403212836,7.7525,143.18,143.12,25.8512]
[1718403213324,7.7525,143.18,143.13,2.585]
[1718403213529,15.505,143.18,143.12,25.8512]
[1718403214109,8.5983978,143.19,143.13,12.925]
[1718403214330,8.5982978,143.19,143.14,2.5848]
[1718403214496,8.5982978,143.19,143.13,25.8497]
[1718403214695,8.5982978,143.19,143.13,23.2648]
[1718403214937,8.5982978,143.19,143.14,2.5848]
[1718403215432,0.8462978,143.19,143.15,2.5845]
[1718403215639,0.8462978,143.19,143.15,23.2615]
[1718403215800,0.8462978,143.19,143.15,25.846]
[1718403216230,0.8462978,143.19,143.15,7.7537]
[1718403216806,0.8462978,143.19,143.15,15.5077]
[1718403217197,0.8462978,143.19,143.15,18.0925]
[1718403217604,0.8462978,143.19,143.15,25.8465]
[1718403217810,0.8462978,143.19,143.15,7.7538]
[1718403218134,0.8462978,143.19,143.16,2.5845]
[1718403218310,0.8462978,143.19,143.15,25.8464]
[1718403220405,0.8462978,143.19,143.12,0.17]
[1718403220406,0.8462978,143.19,143.14,25.8474]
[1718403220730,0.8462978,143.19,143.15,2.5846]
[1718403220929,0.8462978,143.19,143.14,14.975504]
[1718403221107,0.8462978,143.19,143.15,7.7539]
[1718403221302,0.8462978,143.19,143.15,25.8464]
[1718403221527,0.8462978,143.19,143.16,2.5845]
[1718403222016,0.8462978,143.19,143.16,7.7534]
[1718403222324,0.8462978,143.19,143.16,2.5844]
[1718403222725,0.8462978,143.19,143.16,7.7533]
[1718403223134,0.8462978,143.19,143.16,14.3133]
[1718403223627,0.8462978,143.19,143.18,32.4014]
[1718403224051,0.8462978,143.19,143.18,14.3124]
[1718403224410,0.8462978,143.19,143.18,9.1441]
[1718403224611,0.8462978,143.19,143.17,9.3141]
[1718403224830,0.8462978,143.19,143.17,9.1441]
[1718403225009,0.8462978,143.19,143.17,7.7527]
[1718403225209,0.8462978,143.19,143.17,9.1441]
[1718403225423,0.8462978,143.19,143.18,2.5841]
[1718403225933,0.8462978,143.19,143.18,7.7524]
[1718403226126,0.8462978,143.19,143.18,2.5841]
[1718403226643,0.8462978,143.19,143.18,7.7524]
[1718403227138,0.8462978,143.19,143.18,32.9114]
[1718403228113,0.8462978,143.19,143.18,33.0814]
[1718403228416,15.0431,143.29,143.19,21.14]
[1718403228630,15.0431,143.29,143.27,2.5824]
[1718403228810,15.0431,143.29,143.26,6.56]
[1718403228811,6.3489,143.3,143.26,9.1426]
[1718403229012,6.3489,143.3,143.26,12.9134]
[1718403229224,6.3489,143.3,143.26,29.804]
[1718403229430,6.3489,143.3,143.26,14.3079]
[1718403229816,6.3489,143.3,143.26,22.0559]
[1718403230017,23.6339978,143.33,143.27,23.2422]
[1718403230222,9.1416,143.32,143.27,9.1424]
[1718403230647,15.8893978,143.33,143.3,2.5819]
[1718403230938,15.8893978,143.33,143.32,25.9862]
[1718403230939,0.8462978,143.33,143.32,25.9862]
[1718403231152,0.8462978,143.33,143.31,0.17]
[1718403231153,0.8462978,143.33,143.31,2.5817]
[1718403231314,0.8462978,143.33,143.28,10.3288]
[1718403231510,0.8462978,143.33,143.27,0.17]
[1718403231755,2.5816,143.32,143.27,22.5824]
[1718403232037,17.0961978,143.33,143.28,0.17]
[1718403232212,17.0961978,143.33,143.27,7.7472]
[1718403232535,23.2371,143.31,143.25,2.5828]
[1718403232838,6.5986,143.3,143.24,18.0804]
[1718403233022,6.5986,143.3,143.26,7.748]
[1718403233222,6.5986,143.3,143.26,23.244]
[1718403233646,6.5986,143.3,143.27,2.5825]
[1718403233815,6.5986,143.3,143.26,2.5826]
[1718403234411,6.5986,143.3,143.25,25.8278]
[1718403234645,6.5986,143.3,143.25,15.4968]
[1718403234935,6.5986,143.3,143.25,25.8282]
[1718403235147,9.1806,143.3,143.25,2.5828]
[1718403235353,9.1806,143.3,143.24,23.2469]
[1718403235525,2.5822,143.29,143.24,2.583]
[1718403235725,2.5824,143.28,143.23,2.5831]
[1718403235923,2.5821,143.29,143.24,2.5829]
[1718403236123,2.5823,143.28,143.22,23.2502]
[1718403236339,2.5823,143.29,143.23,23.249]
[1718403236540,2.5823,143.29,143.24,2.583]
[1718403236739,7.7466,143.29,143.23,25.8321]
[1718403236933,7.7466,143.29,143.24,2.583]
[1718403237132,14.3448,143.3,143.24,15.4983]
[1718403237359,9.1807,143.3,143.24,12.9153]
[1718403237643,9.1807,143.3,143.25,2.5828]
[1718403237848,5.1648,143.28,143.22,18.0837]
[1718403238031,7.7467,143.29,143.23,7.7495]
[1718403238237,2.5823,143.28,143.23,5.1663]
[1718403238433,2.5823,143.28,143.23,7.7495]
[1718403238744,2.5823,143.28,143.23,2.5832]
[1718403238947,6.5986,143.3,143.26,2.5827]
[1718403239130,6.5986,143.3,143.26,15.4961]
[1718403239454,17.0961978,143.33,143.24,0.17]
[1718403239627,0.8462978,143.33,143.3,23.2373]
[1718403239946,0.8462978,143.33,143.29,7.7462]
[1718403240129,3.4276978,143.33,143.28,2.5823]
[1718403240458,7.7449,143.32,143.26,23.2437]
[1718403240626,2.5818,143.31,143.26,2.5826]
[1718403240826,22.4939,143.31,143.27,7.7472]
[1718403241032,22.4939,143.31,143.28,2.5823]
[1718403241231,0.8462978,143.33,143.28,18.0763]
[1718403241436,0.8462978,143.33,143.24,0.51]
[1718403241632,0.8462978,143.33,143.24,0.34]
[1718403241850,0.8462978,143.33,143.28,2.5823]
[1718403241851,3.4277978,143.33,143.28,2.5823]
[1718403242147,0.8462978,143.33,143.28,0.17]
[1718403242352,0.8462978,143.33,143.31,7.7451]
[1718403242729,2.5817,143.32,143.27,0.17]
[1718403242942,2.5817,143.32,143.27,7.7475]
[1718403243134,0.8462978,143.33,143.28,5.1647]
[1718403243339,0.8462978,143.33,143.28,23.2405]
[1718403243538,0.8462978,143.33,143.25,0.34]
[1718403243539,16.3350978,143.33,143.27,25.8241]
[1718403243728,0.8462978,143.33,143.23,20.0]
[1718403243927,23.2355,143.32,143.26,2.5825]
[1718403244126,25.8172,143.32,143.27,2.5825]
[1718403244350,8.5907978,143.33,143.27,12.9125]
[1718403244550,2.5816,143.32,143.27,7.7473]
[1718403244754,8.5907978,143.33,143.28,2.5823]
[1718403246059,3.4277978,143.33,143.28,15.494]
[1718403246236,3.4277978,143.33,143.28,7.747]
[1718403246568,8.5906978,143.33,143.28,2.5822]
[1718403246757,5.1633,143.32,143.26,23.2432]
[1718403246929,2.5818,143.31,143.26,25.8257]
[1718403247126,25.8164,143.32,143.27,2.5825]
[1718403247326,0.8462978,143.33,143.23,20.0]
[1718403247535,2.5819,143.31,143.26,7.7478]
[1718403247849,15.4905,143.32,143.26,7.7478]
[1718403247850,2.5816,143.32,143.27,7.7472]
[1718403248056,24.0800978,143.33,143.27,23.2423]
[1718403248229,2.5816,143.32,143.27,15.4947]
[1718403248737,7.7449,143.32,143.27,7.7472]
[1718403248945,20.6532,143.32,143.27,2.5825]
[1718403249151,25.8166,143.32,143.27,2.5825]
[1718403249359,0.8462978,143.33,143.29,15.4926]
[1718403249661,3.4277978,143.33,143.28,25.8226]
[1718403249849,2.5816,143.32,143.27,15.4947]
[1718403250159,26.6613978,143.33,143.28,2.5823]
[1718403250458,8.5909978,143.33,143.28,7.7469]
[1718403251161,15.4898,143.32,143.27,2.5824]
[1718403251457,2.5816,143.32,143.28,2.5823]
[1718403251640,24.0798978,143.33,143.28,2.5823]
[1718403251841,2.5816,143.32,143.27,25.8249]
[1718403252054,7.7448,143.32,143.27,7.7473]
[1718403252265,7.2448,143.32,143.27,15.4948]
[1718403252458,7.7456,143.31,143.26,7.7479]
[1718403252758,25.8175,143.32,143.26,23.244]
[1718403252952,0.8462978,143.33,143.27,10.33]
[1718403253161,8.5907978,143.33,143.28,2.5822]
[1718403253337,3.4277978,143.33,143.29,2.5821]
[1718403253534,16.3350978,143.33,143.28,7.7466]
[1718403253763,2.5816,143.32,143.28,2.5821]
[1718403253952,7.7449,143.32,143.27,25.8242]
[1718403254343,2.5816,143.32,143.27,23.2418]
[1718403254543,2.5816,143.32,143.28,2.5823]
[1718403255052,26.6612978,143.33,143.28,7.747]
[1718403255257,2.5816,143.32,143.28,7.747]
[1718403255555,0.8462978,143.33,143.29,7.7463]
[1718403255757,3.4276978,143.33,143.29,2.5821]
[1718403256167,8.5905978,143.33,143.28,25.8229]
[1718403256352,8.5905978,143.33,143.29,2.5821]
[1718403256553,8.5905978,143.33,143.28,7.7466]
[1718403256554,16.3349978,143.33,143.28,7.7466]
[1718403257061,0.8462978,143.33,143.22,15.7959]
[1718403257262,0.8462978,143.33,143.26,7.7479]
[1718403257263,23.2369,143.31,143.26,7.7479]
[1718403257451,7.7457,143.31,143.26,7.7479]
[1718403257756,25.817,143.32,143.27,15.4949]
[1718403257966,7.7451,143.32,143.27,23.2424]
[1718403258140,15.49,143.32,143.27,25.8247]
[1718403258339,2.5818,143.31,143.27,7.7472]
[1718403258765,2.5818,143.31,143.27,2.5823]
[1718403259165,2.5818,143.31,143.27,7.7473]
[1718403260050,2.5818,143.31,143.27,2.5823]
[1718403260259,2.5818,143.31,143.27,7.7473]
[1718403260951,7.7454,143.31,143.26,23.2432]
[1718403261257,25.8203,143.3,143.25,25.8283]
[1718403261447,25.8203,143.3,143.26,2.5827]
[1718403261448,7.7462,143.3,143.26,2.5827]
[1718403261645,2.5821,143.3,143.26,2.5827]
[1718403261858,2.5818,143.31,143.27,7.7474]
[1718403262060,2.5818,143.31,143.27,2.5824]
[1718403262458,2.5818,143.31,143.26,23.2433]
[1718403262459,7.7455,143.31,143.26,23.2433]
[1718403262655,7.7455,143.31,143.27,2.5825]
[1718403262862,2.5818,143.31,143.27,7.7475]
[1718403263157,7.7454,143.31,143.26,23.2434]
[1718403263466,2.5822,143.29,143.25,2.5828]
[1718403263853,2.5822,143.29,143.25,7.7485]
[1718403264255,25.8211,143.3,143.25,7.7485]
[1718403264448,0.17,143.32,143.19,40.6]
[1718403264750,0.17,143.32,143.23,18.0825]
[1718403264751,25.8237,143.28,143.23,18.0825]
[1718403265073,25.8228,143.29,143.24,7.7491]
[1718403265273,7.7476,143.27,143.18,20.69102354]
[1718403265453,7.7478,143.27,143.22,23.2505]
[1718403265768,2.5826,143.27,143.23,2.5832]
[1718403266756,2.5826,143.27,143.23,7.7497]
[1718403266953,25.8244,143.28,143.23,15.4994]
[1718403267271,25.8244,143.28,143.23,7.7497]
[1718403267474,2.5825,143.27,143.23,7.7497]
[1718403267974,25.8244,143.28,143.23,15.4994]
[1718403268168,7.7477,143.27,143.22,23.2498]
[1718403268358,2.5826,143.27,143.23,2.5832]
[1718403268753,2.5831,143.24,143.2,2.5837]
[1718403268955,15.4997,143.23,143.18,7.7522]
[1718403269163,25.8296,143.25,143.2,7.7511]
[1718403269360,23.2479,143.24,143.19,7.7515]
[1718403269570,25.8311,143.24,143.19,7.7515]
[1718403269762,2.5832,143.24,143.2,2.5837]
[1718403270269,25.8308,143.24,143.19,7.7514]
[1718403270477,7.7493,143.24,143.2,2.5837]
[1718403270774,2.5832,143.24,143.2,2.5837]
[1718403270985,2.5832,143.23,143.19,7.7514]
[1718403271355,2.5832,143.24,143.2,2.5837]
[1718403271876,23.2495,143.23,143.18,7.7522]
[1718403272169,25.8328,143.23,143.19,2.5839]
[1718403272372,25.8328,143.23,143.14,15.1639]
[1718403272373,23.2532,143.21,143.16,2.5844]
[1718403272549,23.2532,143.21,143.15,2.5846]
[1718403272550,23.2545,143.2,143.15,2.5846]
[1718403272751,25.8384,143.2,143.15,7.7539]
[1718403272962,15.6223,143.21,143.14,7.7545]
[1718403272963,2.5841,143.18,143.14,7.7545]
[1718403273171,7.7521,143.19,143.15,2.5846]
[1718403273357,15.6223,143.21,143.13,2.585]
[1718403273358,2.5843,143.17,143.13,2.585]
[1718403273686,2.5843,143.17,143.13,7.7548]
[1718403273858,5.1683,143.18,143.13,5.1699]
[1718403274058,2.5843,143.18,143.13,12.9251]
[1718403274254,15.5052,143.18,143.13,15.51]
[1718403274581,2.5842,143.18,143.14,2.5848]
[1718403274759,2.584,143.19,143.15,2.5846]
[1718403275156,2.584,143.19,143.14,25.848]
[1718403275157,7.7519,143.19,143.14,25.848]
[1718403275376,0.17,143.2,143.11,7.7561]
[1718403275683,2.5844,143.17,143.13,2.585]
[1718403276385,2.5849,143.14,143.1,2.5855]
[1718403276566,2.585,143.13,143.09,5.1714]
[1718403276772,2.585,143.13,143.09,7.7572]
[1718403276977,2.5852,143.12,143.07,23.2742]
[1718403277280,2.5854,143.11,143.07,2.5859]
[1718403277485,23.2675,143.12,143.07,2.5861]
[1718403277788,2.5853,143.12,143.07,5.1722]
[1718403277955,8.9743,143.13,143.09,2.5857]
[1718403278269,2.5854,143.11,143.07,2.5861]
[1718403278666,6.3891,143.13,143.09,2.5857]
[1718403279096,6.3891,143.13,143.08,7.7575]
[1718403279097,14.1443,143.13,143.08,23.2727]
[1718403279261,8.9742,143.13,143.09,2.5857]
[1718403279465,6.3891,143.13,143.09,7.7572]
[1718403279669,8.9741,143.13,143.09,2.5857]
[1718403280097,29.6546,143.13,143.08,2.5858]
[1718403280260,23.2691,143.11,143.06,2.5862]
[1718403280462,23.2691,143.11,143.06,7.7588]
[1718403280675,25.8546,143.11,143.06,7.7588]
[1718403280882,25.8533,143.12,143.07,2.5861]
[1718403281079,2.5854,143.11,143.07,2.5861]
[1718403281395,7.7562,143.11,143.06,25.8627]
[1718403281617,7.7562,143.11,143.04,0.17]
[1718403281618,6.3891,143.13,143.09,15.5143]
[1718403281765,8.9741,143.13,143.09,7.757]
[1718403282090,8.9741,143.13,143.09,2.5856]
[1718403282388,6.3891,143.13,143.09,7.7571]
[1718403282566,6.3891,143.13,143.09,23.2719]
[1718403282887,15.6223,143.14,143.1,2.5855]
[1718403283190,15.6223,143.14,143.1,15.5133]
[1718403283379,18.2072,143.14,143.1,2.5855]
[1718403283686,18.2072,143.14,143.09,23.2714]
[1718403283687,2.585,143.13,143.09,7.757]
[1718403284189,23.377,143.14,143.09,15.5143]
[1718403284364,2.585,143.13,143.09,7.757]
[1718403284565,2.585,143.13,143.09,2.5856]
[1718403284770,2.585,143.13,143.08,23.2723]
[1718403285089,41.4716,143.14,143.09,7.7571]
[1718403285394,41.4716,143.14,143.09,15.5143]
[1718403285592,2.585,143.13,143.09,7.7571]
[1718403286095,7.7551,143.13,143.08,25.8582]
[1718403286286,15.5103,143.13,143.08,23.2724]
[1718403286603,15.5103,143.13,143.08,25.8582]
[1718403286785,7.7551,143.13,143.09,2.5857]
[1718403287093,2.585,143.13,143.09,2.5857]
[1718403287297,23.3772,143.14,143.1,2.5856]
[1718403287596,15.6223,143.14,143.1,7.7567]
[1718403287911,6.3891,143.16,143.07,0.51]
[1718403288095,6.3891,143.16,143.12,7.7554]
[1718403288284,8.9736,143.16,143.12,7.7554]
[1718403288890,8.9737,143.16,143.12,2.5852]
[1718403289094,21.8963,143.16,143.11,25.8534]
[1718403289297,8.9737,143.16,143.12,2.5851]
[1718403289489,8.9737,143.16,143.12,7.7555]
[1718403289913,6.3891,143.16,143.12,25.8521]
[1718403290084,8.9736,143.16,143.12,7.7555]
[1718403290982,23.3756,143.17,143.13,2.585]
[1718403291195,15.2765,143.19,143.08,36.8057]
[1718403291390,15.2765,143.19,143.15,5.1692]
[1718403291588,15.2765,143.19,143.16,7.7532]
[1718403291798,12.9187,143.21,143.17,2.5843]
[1718403291799,2.5836,143.21,143.17,2.5843]
[1718403292004,2.5836,143.21,143.17,7.7529]
[1718403292518,2.5836,143.21,143.16,18.0907]
[1718403292519,15.5016,143.21,143.16,25.8437]
[1718403292817,2.584,143.19,143.15,7.7539]
[1718403292986,2.584,143.19,143.15,2.5846]
[1718403293191,2.5844,143.17,143.13,2.585]
[1718403293593,5.167,143.22,143.14,0.51]
[1718403293813,2.5836,143.21,143.17,2.5843]
[1718403294489,7.7514,143.2,143.16,2.5844]
[1718403294695,25.8364,143.21,143.16,7.7533]
[1718403294902,15.2765,143.23,143.14,0.51]
[1718403294903,7.7506,143.22,143.17,23.2586]
[1718403295101,25.8346,143.22,143.17,7.7527]
[1718403295308,2.5836,143.21,143.17,7.7527]
[1718403295513,25.8346,143.22,143.17,7.7527]
[1718403295701,25.8346,143.22,143.17,15.5057]
[1718403296312,2.5835,143.22,143.17,23.2586]
[1718403296516,15.2765,143.23,143.14,0.51]
[1718403296701,17.8597,143.23,143.19,2.5839]
[1718403297818,15.2765,143.23,143.19,15.5037]
[1718403297997,15.2765,143.23,143.2,2.5837]
[1718403298495,15.2765,143.23,143.19,25.8394]
[1718403298805,17.8597,143.23,143.19,7.7517]
[1718403299009,2.5834,143.22,143.18,7.7521]
[1718403299207,2.5834,143.22,143.18,2.584]
[1718403299707,2.5836,143.21,143.17,2.5843]
[1718403300097,2.5835,143.22,143.18,2.5841]
[1718403300296,2.5836,143.21,143.17,2.5841]
[1718403300498,25.8346,143.22,143.17,7.7527]
[1718403300699,2.5836,143.21,143.17,2.5841]
[1718403300895,41.1098,143.23,143.18,7.7523]
[1718403301098,23.0264,143.23,143.18,25.8413]
[1718403301326,30.7762,143.23,143.18,15.5047]
[1718403301506,2.5834,143.22,143.18,7.7523]
[1718403301706,41.1093,143.23,143.18,7.7523]
[1718403302001,17.8598,143.23,143.19,2.5839]
[1718403302204,15.2765,143.23,143.19,7.7518]
[1718403302536,41.1089,143.23,143.18,7.7521]
[1718403302829,17.8597,143.23,143.19,2.5839]
[1718403303724,17.8597,143.23,143.19,23.2554]
[1718403303725,15.2765,143.23,143.19,23.2554]
[1718403303901,14.2001,143.24,143.19,23.2554]
[1718403304101,7.7481,143.26,143.21,23.2514]
[1718403304319,7.7487,143.25,143.2,12.9186]
[1718403304518,2.583,143.24,143.2,7.7509]
[1718403304734,2.583,143.24,143.2,2.5836]
[1718403304940,2.5829,143.25,143.21,2.5835]
[1718403305106,2.5829,143.25,143.2,25.8369]
[1718403305305,2.5829,143.25,143.21,2.5836]
[1718403305527,25.8276,143.26,143.21,2.5836]
[1718403305912,25.8276,143.26,143.21,7.7508]
[1718403306113,25.8276,143.26,143.21,2.5836]
[1718403306319,2.5829,143.25,143.21,2.5836]
[1718403306525,25.8276,143.26,143.21,2.5836]
[1718403306837,7.7483,143.26,143.21,7.7507]
[1718403307330,7.7483,143.26,143.21,15.5015]
[1718403307511,15.0868,143.27,143.2,7.7513]
[1718403307715,7.7483,143.26,143.21,15.5013]
[1718403308017,38.3302,143.27,143.22,2.5833]
[1718403308226,2.5827,143.26,143.21,25.8354]
[1718403308423,2.5821,143.29,143.25,2.5828]
[1718403308625,6.2057,143.3,143.26,11.72544521]
[1718403308939,15.0868,143.31,143.27,7.7474]
[1718403309116,17.6686,143.31,143.26,15.4959]
[1718403309303,17.6686,143.31,143.22,0.81908448]
[1718403309304,7.0519978,143.33,143.28,23.2407]
[1718403309633,9.6334978,143.33,143.28,7.7467]
[1718403309807,25.8204,143.3,143.24,23.2472]
[1718403310134,25.8204,143.3,143.25,2.5827]
[1718403310135,7.746,143.3,143.25,2.5827]
[1718403310438,2.5819,143.31,143.26,2.5826]
[1718403310638,2.5817,143.32,143.27,7.7474]
[1718403310846,15.4898,143.32,143.27,2.5824]
[1718403311510,7.0519978,143.33,143.24,0.17]
[1718403311724,7.7456,143.31,143.26,7.748]
[1718403311924,2.5819,143.31,143.26,7.748]
[1718403312432,15.4909,143.31,143.26,2.5826]
[1718403312738,7.7459,143.3,143.25,2.5827]
[1718403313032,25.8183,143.31,143.26,2.5826]
[1718403313227,2.5819,143.31,143.26,15.496]
[1718403313415,23.2357,143.32,143.27,2.5825]
[1718403313615,9.6333978,143.33,143.28,7.747]
[1718403313819,0.8462978,143.33,143.28,25.8227]
[1718403314022,3.4276978,143.33,143.28,25.8227]
[1718403314231,3.4277978,143.33,143.28,23.2405]
[1718403314433,8.5906978,143.33,143.28,7.7467]
[1718403314607,3.4277978,143.33,143.28,15.4937]
[1718403314814,8.5906978,143.33,143.28,7.7467]
[1718403315232,3.4277978,143.33,143.28,15.4937]
[1718403315434,0.8462978,143.33,143.29,2.5821]
[1718403315623,18.9170978,143.33,143.27,5.1648]
[1718403315827,23.2382,143.3,143.24,23.2467]
[1718403316133,2.5821,143.29,143.24,25.8296]
[1718403316313,23.2396,143.29,143.23,5.1663]
[1718403316641,7.7471,143.28,143.22,12.9169]
[1718403316824,7.7472,143.28,143.23,7.7496]
[1718403317130,2.5824,143.28,143.23,15.4993]
[1718403317442,22.5746,143.3,143.21,2.5834]
[1718403317612,7.7473,143.28,143.23,7.7495]
[1718403317934,23.2416,143.28,143.23,7.7497]
[1718403318114,2.5824,143.28,143.23,25.8323]
[1718403318315,2.5822,143.29,143.2,15.6942]
[1718403318520,2.5822,143.29,143.24,15.498]
[1718403318721,45.8129,143.3,143.25,7.7484]
[1718403318722,30.3206,143.3,143.25,7.7484]
[1718403319149,25.1566,143.3,143.25,23.2458]
[1718403319636,25.1566,143.3,143.25,25.8285]
[1718403319939,22.5746,143.3,143.26,2.5827]
[1718403320137,25.1566,143.3,143.26,2.5827]
[1718403320732,0.8462978,143.33,143.3,2.5819]
[1718403320913,0.8462978,143.33,143.29,23.2386]
[1718403321109,0.8462978,143.33,143.31,2.5817]
[1718403321326,0.8462978,143.33,143.31,2.5818]
[1718403321836,0.8462978,143.33,143.28,0.17]
[1718403321837,3.4276978,143.33,143.28,23.2404]
[1718403322135,0.8462978,143.33,143.29,0.17]
[1718403322314,0.8462978,143.33,143.3,2.5819]
[1718403322636,0.8462978,143.33,143.29,8.086]
[1718403323018,0.8462978,143.33,143.3,2.5819]
[1718403323238,0.8462978,143.33,143.3,15.4917]
[1718403323541,0.8462978,143.33,143.3,25.8195]
[1718403324037,0.8462978,143.33,143.31,18.0725]
[1718403324239,0.8462978,143.33,143.32,25.8162]
[1718403324426,0.8462978,143.33,143.31,2.5817]
[1718403325243,0.8462978,143.33,143.3,23.2373]
[1718403325538,0.8462978,143.33,143.31,7.7453]
[1718403325840,0.8462978,143.33,143.32,5.1632]
[1718403326014,0.8462978,143.33,143.32,7.7448]
[1718403326215,0.8462978,143.33,143.32,2.5816]
[1718403326811,0.8462978,143.33,143.3,23.2374]
[1718403327015,0.8462978,143.33,143.31,2.5817]
[1718403327217,0.8462978,143.33,143.31,23.2358]
[1718403327424,0.8462978,143.33,143.31,7.7451]
[1718403327631,0.8462978,143.33,143.32,2.5816]
[1718403328141,0.8462978,143.33,143.31,25.8175]
[1718403328340,0.8462978,143.33,143.32,15.4897]
[1718403328541,0.8462978,143.33,143.32,26.3262]
[1718403328722,0.8462978,143.33,143.32,26.4962]
[1718403329646,22.8244,143.41,143.37,7.742]
[1718403329813,25.4044,143.41,143.36,25.8081]
[1718403330140,25.4044,143.41,143.36,25.808]
[1718403330343,25.4044,143.41,143.36,15.4849]
[1718403330640,7.7398,143.42,143.37,2.5807]
[1718403330841,25.7987,143.42,143.37,2.5807]
[1718403331051,22.8244,143.45,143.34,5.1623]
[1718403331216,7.7417,143.38,143.33,2.5814]
[1718403331417,15.4833,143.38,143.33,2.5814]
[1718403331653,7.7412,143.39,143.34,2.5812]
[1718403331817,7.7412,143.39,143.34,7.7437]
[1718403332222,23.2227,143.4,143.34,23.231]
[1718403332426,2.5804,143.39,143.34,25.8121]
[1718403332625,25.803,143.4,143.35,2.581]
[1718403332929,2.5803,143.39,143.35,2.581]
[1718403333129,19.63,143.43,143.32,8.0846]
[1718403333130,119.63,143.43,143.32,8.0846]
[1718403333333,2.5807,143.37,143.32,2.5815]
[1718403333538,15.4844,143.37,143.32,7.7446]
[1718403333762,7.7422,143.37,143.32,7.7446]
[1718403334334,25.8061,143.38,143.33,2.5814]
[1718403334563,2.5805,143.38,143.33,12.907]
[1718403334855,2.5807,143.37,143.32,25.8152]
[1718403335032,25.8059,143.38,143.33,2.5814]
[1718403335233,7.7419,143.38,143.33,7.7442]
[1718403336157,7.7419,143.38,143.33,15.4885]
[1718403336371,7.7419,143.38,143.33,7.7442]
[1718403336529,2.5807,143.38,143.33,12.9071]
[1718403336866,2.0807,143.38,143.33,25.8141]
[1718403337039,7.7423,143.37,143.32,7.7445]
[1718403337244,25.8077,143.37,143.32,2.5816]
[1718403337433,2.5808,143.37,143.33,2.5814]
[1718403337627,32.44,143.38,143.33,2.5814]
[1718403338064,9.2142,143.38,143.3,0.17]
[1718403338233,2.5807,143.37,143.33,2.5814]
[1718403338729,9.214,143.38,143.34,2.5812]
[1718403338938,9.214,143.38,143.33,25.8142]
[1718403339652,9.214,143.38,143.34,2.5812]
[1718403339950,39.4148,143.39,143.35,2.581]
[1718403339951,18.7712,143.39,143.35,2.581]
[1718403340154,18.7713,143.39,143.34,25.8119]
[1718403340457,18.7713,143.39,143.35,2.581]